bitfinex-derivatives/quotes_BTCF0:USTF0_20250811
["timestamp","ask_amount","ask_price","bid_price","bid_amount"]
[1754883608576,2.14119,121620.0,121610.0,1.09113868]
[1754883608882,1.36959,121620.0,121610.0,1.21446381]
[1754883609073,2.14119,121620.0,121610.0,1.21446381]
[1754883609279,2.14119,121620.0,121610.0,1.29669727]
[1754883609475,2.19048,121620.0,121610.0,1.29669727]
[1754883609975,2.19148,121620.0,121610.0,1.29669727]
[1754883610763,2.20964398,121620.0,121610.0,1.29669727]
[1754883611008,2.21064398,121620.0,121610.0,1.29669727]
[1754883611482,1.15608398,121620.0,121610.0,1.29669727]
[1754883611679,1.90852,121620.0,121610.0,1.29669727]
[1754883611875,1.97625,121620.0,121610.0,1.29669727]
[1754883612183,2.14219,121620.0,121610.0,1.29669727]
[1754883613186,2.1605262,121620.0,121610.0,1.29669727]
[1754883613484,1.13692,121620.0,121610.0,1.29678512]
[1754883613684,1.90848,121620.0,121610.0,1.55958512]
[1754883614580,1.13692,121620.0,121610.0,1.55958512]
[1754883614986,1.13692,121620.0,121610.0,1.72404112]
[1754883615188,1.13692,121620.0,121610.0,1.8192766]
[1754883615379,1.90848,121620.0,121610.0,1.8192766]
[1754883615573,1.90848,121620.0,121610.0,1.8233766]
[1754883615883,0.32289442,121620.0,121610.0,1.8233766]
[1754883616183,0.70782486,121620.0,121610.0,2.3233766]
[1754883616587,0.70782486,121620.0,121610.0,2.3273766]
[1754883616983,0.77148,121620.0,121610.0,2.3273766]
[1754883617183,0.71527928,121620.0,121610.0,2.3273766]
[1754883617384,0.71527928,121620.0,121610.0,2.3293766]
[1754883618082,0.7227337,121620.0,121610.0,2.3253766]
[1754883618288,0.7227337,121620.0,121610.0,2.3303766]
[1754883618785,0.7227337,121620.0,121610.0,2.3293766]
[1754883620089,0.7714,121620.0,121610.0,2.0514366]
[1754883620289,0.0001,121630.0,121610.0,2.0514366]
[1754883620492,0.7715,121630.0,121620.0,0.81319868]
[1754883620787,0.7714,121630.0,121620.0,1.09113868]
[1754883620992,0.7714,121630.0,121620.0,1.30423014]
[1754883621190,0.6754,121630.0,121620.0,1.38645345]
[1754883621384,0.04939,121640.0,121630.0,0.41336]
[1754883621683,1.1918,121640.0,121630.0,1.09113868]
[1754883621994,1.1918,121640.0,121630.0,0.94659417]
[1754883622193,1.1918,121640.0,121630.0,1.0288141]
[1754883622691,1.19172,121640.0,121630.0,1.0288141]
[1754883623194,1.19172,121640.0,121630.0,1.0298141]
[1754883623586,1.24101,121640.0,121630.0,1.0308141]
[1754883624694,0.46969,121640.0,121630.0,1.0308141]
[1754883624894,1.24097,121640.0,121630.0,1.0308141]
[1754883625595,1.24097,121640.0,121630.0,1.2936141]
[1754883626489,0.46969,121640.0,121630.0,1.0610241]
[1754883626685,1.50855868,121640.0,121630.0,1.2936141]
[1754883627291,0.73731868,121640.0,121630.0,1.2936141]
[1754883627497,1.50855868,121640.0,121630.0,1.2936141]
[1754883628398,1.50851868,121640.0,121630.0,1.2936141]
[1754883629390,0.73731868,121640.0,121630.0,1.2936141]
[1754883629790,1.50847868,121640.0,121630.0,1.2936141]
[1754883631895,0.0001,121650.0,121630.0,1.0308141]
[1754883632195,0.21149,121650.0,121640.0,1.09120345]
[1754883632399,1.05024,121650.0,121640.0,0.82357477]
[1754883632595,1.05024,121650.0,121640.0,0.94660764]
[1754883632901,1.05024,121650.0,121640.0,1.02881406]
[1754883633099,1.05024,121650.0,121640.0,1.79644274]
[1754883633306,0.98251,121650.0,121640.0,1.52881406]
[1754883633501,0.98251,121650.0,121640.0,1.79644274]
[1754883633798,0.81657,121650.0,121640.0,1.79644274]
[1754883634193,0.81657,121650.0,121640.0,1.52881406]
[1754883634398,0.81657,121650.0,121640.0,1.79644274]
[1754883634997,0.81657,121650.0,121640.0,1.79744274]
[1754883635202,0.81657,121650.0,121640.0,1.52981406]
[1754883635499,1.161,121650.0,121640.0,1.79744274]
[1754883635694,0.92733,121650.0,121640.0,1.79744274]
[1754883636300,0.04545,121650.0,121640.0,1.79844274]
[1754883636496,0.77104,121650.0,121640.0,1.79844274]
[1754883637198,0.77104,121650.0,121640.0,1.80254274]
[1754883637399,0.77104,121650.0,121640.0,2.06534274]
[1754883637997,0.0001,121660.0,121650.0,0.46964]
[1754883638298,0.47371,121670.0,121660.0,0.46964]
[1754883638596,0.47361,121670.0,121660.0,1.09334]
[1754883638796,1.24733,121670.0,121660.0,1.2173567]
[1754883639194,1.24725,121670.0,121660.0,1.2173567]
[1754883639394,1.24725,121670.0,121660.0,1.2995496]
[1754883641106,1.24813,121670.0,121660.0,1.2995496]
[1754883641400,0.47461,121670.0,121660.0,1.2995496]
[1754883641600,1.25013,121670.0,121660.0,1.36616795]
[1754883642401,0.47461,121670.0,121660.0,1.36616795]
[1754883642601,1.25213,121670.0,121660.0,1.36616795]
[1754883649312,0.47661,121670.0,121660.0,1.36616795]
[1754883649508,0.47661,121670.0,121660.0,1.63379663]
[1754883649808,1.24977,121670.0,121660.0,1.36616795]
[1754883653506,1.17951,121670.0,121660.0,1.36616795]
[1754883653711,1.06259,121670.0,121660.0,1.36616795]
[1754883654009,1.21839,121670.0,121660.0,1.36616795]
[1754883655012,1.21839,121670.0,121660.0,1.55813154]
[1754883655811,0.47661,121670.0,121660.0,1.55813154]
[1754883655999,1.24805,121670.0,121660.0,1.55813154]
[1754883656203,1.24805,121670.0,121660.0,1.36616795]
[1754883657615,0.47661,121670.0,121660.0,1.55774388]
[1754883657813,1.24757,121670.0,121660.0,1.55774388]
[1754883658217,1.24793,121670.0,121660.0,1.55774388]
[1754883658812,1.24793,121670.0,121660.0,1.36616795]
[1754883659223,0.47661,121670.0,121660.0,1.36616795]
[1754883659515,1.24793,121670.0,121660.0,1.36616795]
[1754883660912,1.24793,121670.0,121660.0,1.37106154]
[1754883660913,0.003,121670.0,121660.0,1.37106154]
[1754883661111,0.003,121670.0,121660.0,2.0780589]
[1754883661312,0.00016152,121680.0,121670.0,0.46964]
[1754883661510,6.152e-05,121680.0,121670.0,1.36096868]
[1754883661716,6.152e-05,121680.0,121670.0,2.50476663]
[1754883662018,6.152e-05,121680.0,121670.0,2.58695278]
[1754883662318,1.24459152,121680.0,121670.0,1.3840281]
[1754883662518,1.24659152,121680.0,121670.0,1.3840281]
[1754883662719,0.47867152,121680.0,121670.0,1.3840281]
[1754883663021,1.5172202,121680.0,121670.0,1.06825379]
[1754883663310,1.5172202,121680.0,121670.0,1.13866379]
[1754883663510,1.24959152,121680.0,121670.0,1.63866379]
[1754883663716,0.47867152,121680.0,121670.0,1.90629247]
[1754883664118,1.24955152,121680.0,121670.0,1.90629247]
[1754883665917,1.24951152,121680.0,121670.0,1.90629247]
[1754883666818,1.24951152,121680.0,121670.0,1.91039247]
[1754883672017,1.24951152,121680.0,121670.0,1.90629247]
[1754883673619,1.24951152,121680.0,121670.0,1.64349247]
[1754883673814,0.8284773,121680.0,121670.0,0.70896379]
[1754883674015,1.5992773,121680.0,121670.0,0.70896379]
[1754883674719,0.41257152,121680.0,121670.0,1.81642247]
[1754883674918,1.25204152,121680.0,121670.0,1.31642247]
[1754883675423,0.93335152,121680.0,121670.0,1.31232247]
[1754883676214,0.93339152,121680.0,121670.0,1.31232247]
[1754883676521,0.93339152,121680.0,121670.0,1.81232247]
[1754883676716,0.77586152,121680.0,121670.0,1.81232247]
[1754883676917,0.77586152,121680.0,121670.0,1.89997492]
[1754883678223,0.77586152,121680.0,121670.0,2.00822885]
[1754883678420,0.82412152,121680.0,121670.0,2.00822885]
[1754883678618,0.99667152,121680.0,121670.0,2.00822885]
[1754883679823,0.22587152,121680.0,121670.0,2.00822885]
[1754883680119,0.99663152,121680.0,121670.0,2.00822885]
[1754883680327,1.17457152,121680.0,121670.0,2.00822885]
[1754883680522,1.17457152,121680.0,121670.0,2.01232885]
[1754883681527,1.16471528,121680.0,121670.0,2.01232885]
[1754883682924,0.81422528,121680.0,121670.0,2.01232885]
[1754883684324,0.98677528,121680.0,121670.0,2.01232885]
[1754883684530,1.05544528,121680.0,121670.0,2.01232885]
[1754883684731,1.10258528,121680.0,121670.0,2.01232885]
[1754883685430,1.10258528,121680.0,121670.0,2.00822885]
[1754883687231,0.18302528,121680.0,121670.0,2.00822885]
[1754883687431,0.47138528,121680.0,121670.0,2.00822885]
[1754883687931,1.24202528,121680.0,121670.0,2.00822885]
[1754883688130,0.47138528,121680.0,121670.0,2.00822885]
[1754883688330,1.24202528,121680.0,121670.0,2.00822885]
[1754883688526,0.47138528,121680.0,121670.0,2.00822885]
[1754883688727,1.24198528,121680.0,121670.0,2.00822885]
[1754883689129,0.47138528,121680.0,121670.0,1.15331624]
[1754883689329,0.92944489,121680.0,121670.0,0.70486379]
[1754883689532,1.70004489,121680.0,121670.0,0.70486379]
[1754883689829,1.32416228,121680.0,121670.0,0.70486379]
[1754883690421,0.55356228,121680.0,121670.0,0.70896379]
[1754883690628,1.32416228,121680.0,121670.0,0.70896379]
[1754883690929,0.92944489,121680.0,121670.0,0.70896379]
[1754883691231,2.06084489,121680.0,121670.0,0.70896379]
[1754883691732,2.06084489,121680.0,121670.0,0.20896379]
[1754883691919,2.2252209,121680.0,121670.0,0.20896379]
[1754883692418,2.2252209,121680.0,121670.0,0.40057704]
[1754883693229,2.11084489,121680.0,121670.0,0.40047704]
[1754883693432,0.4716638,121670.0,121660.0,0.06661835]
[1754883693727,0.4335906,121660.0,121650.0,0.3608]
[1754883693938,1.27595686,121660.0,121650.0,0.40839]
[1754883694229,1.27595686,121660.0,121650.0,0.6133711]
[1754883694420,1.27595686,121660.0,121650.0,0.78516383]
[1754883694623,1.27595686,121660.0,121650.0,0.78526383]
[1754883695320,0.3514,121660.0,121650.0,1.04907383]
[1754883695525,1.16004,121660.0,121650.0,1.42495644]
[1754883696032,1.16004,121660.0,121650.0,1.04907383]
[1754883696928,0.28927,121670.0,121660.0,0.48125]
[1754883697122,1.16717,121670.0,121660.0,1.14421261]
[1754883697321,1.2493538,121670.0,121660.0,0.97997938]
[1754883697526,1.2493538,121670.0,121660.0,1.04709643]
[1754883697735,1.16717,121670.0,121660.0,1.04709643]
[1754883699532,1.16717,121670.0,121660.0,1.30989643]
[1754883700131,1.16717,121670.0,121660.0,1.57727886]
[1754883703236,1.16809,121670.0,121660.0,1.57727886]
[1754883703536,0.39657,121670.0,121660.0,1.57727886]
[1754883703737,1.16761,121670.0,121660.0,1.57727886]
[1754883704633,0.39657,121670.0,121660.0,1.57727886]
[1754883704835,0.39657,121670.0,121660.0,1.30989643]
[1754883705034,1.16721,121670.0,121660.0,1.57727886]
[1754883705739,0.39657,121670.0,121660.0,1.57727886]
[1754883705940,1.16721,121670.0,121660.0,1.30989643]
[1754883706143,1.16721,121670.0,121660.0,1.57727886]
[1754883708142,1.2493941,121670.0,121660.0,1.57727886]
[1754883708641,1.16721,121670.0,121660.0,1.57727886]
[1754883709344,1.16721,121670.0,121660.0,1.30989643]
[1754883709543,1.2493943,121670.0,121660.0,1.30989643]
[1754883710142,1.16721,121670.0,121660.0,1.30989643]
[1754883710543,1.2493946,121670.0,121660.0,1.30989643]
[1754883710738,0.4787546,121670.0,121660.0,1.04709643]
[1754883710939,1.16721,121670.0,121660.0,1.04709643]
[1754883712136,1.2493946,121670.0,121660.0,1.04709643]
[1754883712443,1.2493946,121670.0,121660.0,1.31447886]
[1754883712644,1.16721,121670.0,121660.0,1.31447886]
[1754883713241,1.2493946,121670.0,121660.0,1.04709643]
[1754883714044,1.2493946,121670.0,121660.0,1.05119643]
[1754883715847,0.26368,121680.0,121670.0,0.48125]
[1754883716143,0.26368,121690.0,121680.0,0.48125]
[1754883716346,1.12909,121690.0,121680.0,1.10953243]
[1754883716541,1.12909,121690.0,121680.0,1.2334643]
[1754883716741,0.91788,121690.0,121680.0,1.2334643]
[1754883716940,0.91788,121690.0,121680.0,1.3156572]
[1754883717248,0.35849,121690.0,121680.0,1.3156572]
[1754883717444,1.12909,121690.0,121680.0,1.3156572]
[1754883717947,1.16917,121690.0,121680.0,1.04827477]
[1754883718546,0.36049,121690.0,121680.0,0.97445477]
[1754883718842,1.51868403,121690.0,121680.0,0.78729477]
[1754883719048,1.51868403,121690.0,121680.0,0.25602477]
[1754883719343,1.51868403,121690.0,121680.0,0.28865477]
[1754883719649,1.51868403,121690.0,121680.0,0.56456477]
[1754883720551,0.74812403,121690.0,121680.0,0.61365477]
[1754883720747,0.74812403,121690.0,121680.0,0.56456477]
[1754883720957,1.51864403,121690.0,121680.0,0.39409477]
[1754883721245,1.43647243,121690.0,121680.0,0.56456477]
[1754883721439,1.43647243,121690.0,121680.0,0.68747477]
[1754883721645,1.43847243,121690.0,121680.0,0.68747477]
[1754883722046,1.43847243,121690.0,121680.0,0.68743347]
[1754883722247,0.66795243,121690.0,121680.0,0.68743347]
[1754883722449,1.43843243,121690.0,121680.0,0.68743347]
[1754883722845,1.52060433,121690.0,121680.0,0.68743347]
[1754883723355,1.2532219,121690.0,121680.0,0.68743347]
[1754883724749,0.75012433,121690.0,121680.0,0.39405347]
[1754883724954,1.52056433,121690.0,121680.0,0.92532347]
[1754883725157,1.52056433,121690.0,121680.0,1.04823347]
[1754883725451,1.52056433,121690.0,121680.0,0.68743347]
[1754883725648,1.52056433,121690.0,121680.0,1.04823347]
[1754883726644,1.52056433,121690.0,121680.0,0.68743347]
[1754883726851,1.52056433,121690.0,121680.0,1.04823347]
[1754883727160,1.43839243,121690.0,121680.0,1.04823347]
[1754883727355,0.36249,121690.0,121680.0,1.04823347]
[1754883727650,0.05057,121690.0,121680.0,1.3156159]
[1754883727851,0.82097,121690.0,121680.0,1.3156159]
[1754883728055,0.89035,121690.0,121680.0,1.3156159]
[1754883728253,0.11995,121690.0,121680.0,1.04823347]
[1754883728458,0.004,121690.0,121680.0,1.31571538]
[1754883728649,0.7744,121690.0,121680.0,1.31571538]
[1754883729856,0.98857,121690.0,121680.0,1.04833295]
[1754883731358,0.004,121690.0,121680.0,1.31571538]
[1754883731561,0.77436,121690.0,121680.0,1.31571538]
[1754883731751,0.89362,121690.0,121680.0,1.31571538]
[1754883731947,0.12326,121690.0,121680.0,1.54833295]
[1754883732257,1.12647,121690.0,121680.0,1.54833295]
[1754883733357,1.12647,121690.0,121680.0,1.04833295]
[1754883735861,0.74382503,121690.0,121680.0,0.25631425]
[1754883736157,1.51406503,121690.0,121680.0,0.25631425]
[1754883736358,1.51406503,121690.0,121680.0,0.42669425]
[1754883736558,1.51406503,121690.0,121680.0,0.45781425]
[1754883736859,1.51406503,121690.0,121680.0,0.56987425]
[1754883737061,0.74382503,121690.0,121680.0,0.28743425]
[1754883737262,0.74382503,121690.0,121680.0,0.25631425]
[1754883737563,1.51402503,121690.0,121680.0,0.25631425]
[1754883738760,1.87482503,121690.0,121680.0,0.20632425]
[1754883739155,1.10462503,121690.0,121680.0,0.25631425]
[1754883739556,1.10462503,121690.0,121680.0,0.56987425]
[1754883739753,1.10462503,121690.0,121680.0,0.61810425]
[1754883739959,1.87478503,121690.0,121680.0,0.68971425]
[1754883740156,1.10462503,121690.0,121680.0,0.68971425]
[1754883740360,1.87478503,121690.0,121680.0,0.68971425]
[1754883740562,1.10462503,121690.0,121680.0,0.68971425]
[1754883740954,1.87478503,121690.0,121680.0,0.68971425]
[1754883741158,1.10462503,121690.0,121680.0,0.68971425]
[1754883741358,1.10462503,121690.0,121680.0,0.61810425]
[1754883741557,1.10462503,121690.0,121680.0,0.56987425]
[1754883741958,1.87478503,121690.0,121680.0,0.56987425]
[1754883742258,1.10462503,121690.0,121680.0,0.20632425]
[1754883742459,1.87478503,121690.0,121680.0,0.20632425]
[1754883742659,1.10462503,121690.0,121680.0,0.20632425]
[1754883743866,1.87478503,121690.0,121680.0,0.20632425]
[1754883744065,1.10462503,121690.0,121680.0,0.20632425]
[1754883744265,1.87474503,121690.0,121680.0,0.20632425]
[1754883745363,1.10462503,121690.0,121680.0,0.20632425]
[1754883745563,2.03910503,121690.0,121680.0,0.20632425]
[1754883745763,1.26898503,121690.0,121680.0,0.20632425]
[1754883746067,2.03910503,121690.0,121680.0,0.20632425]
[1754883746368,2.03906503,121690.0,121680.0,0.20632425]
[1754883746569,1.26898503,121690.0,121680.0,0.20632425]
[1754883747261,2.03906503,121690.0,121680.0,0.20632425]
[1754883747458,1.26898503,121690.0,121680.0,0.20632425]
[1754883748070,2.03906503,121690.0,121680.0,0.20632425]
[1754883748568,1.26898503,121690.0,121680.0,0.20632425]
[1754883748769,2.03906503,121690.0,121680.0,0.20632425]
[1754883748969,1.26898503,121690.0,121680.0,0.20632425]
[1754883749366,2.03906503,121690.0,121680.0,0.20632425]
[1754883749565,1.26898503,121690.0,121680.0,0.20632425]
[1754883750065,2.03902503,121690.0,121680.0,0.20632425]
[1754883750569,1.26898503,121690.0,121680.0,0.20632425]
[1754883750770,2.03902503,121690.0,121680.0,0.20632425]
[1754883750971,1.26898503,121690.0,121680.0,0.20632425]
[1754883751271,2.03902503,121690.0,121680.0,0.20632425]
[1754883751470,1.26898503,121690.0,121680.0,0.20632425]
[1754883752066,2.03902503,121690.0,121680.0,0.20632425]
[1754883752371,2.30640746,121690.0,121680.0,0.20632425]
[1754883752666,3.44192746,121690.0,121680.0,0.20632425]
[1754883753073,3.17454503,121690.0,121680.0,0.20632425]
[1754883753276,2.40450503,121690.0,121680.0,0.20632425]
[1754883753667,3.17454503,121690.0,121680.0,0.20632425]
[1754883755175,2.40450503,121690.0,121680.0,0.20632425]
[1754883755376,3.44188746,121690.0,121680.0,0.20632425]
[1754883758973,3.44188746,121690.0,121660.0,0.17448]
[1754883758974,0.0821937,121660.0,121650.0,0.22437213]
[1754883759176,1.87467613,121660.0,121650.0,0.0486]
[1754883759478,1.87467613,121660.0,121650.0,0.55358682]
[1754883759778,1.10475613,121660.0,121650.0,0.55358682]
[1754883759974,1.10475613,121660.0,121650.0,0.55368461]
[1754883760279,1.87477613,121660.0,121650.0,0.67380461]
[1754883762185,1.87577613,121660.0,121650.0,0.67380461]
[1754883763187,1.10585613,121660.0,121650.0,0.67380461]
[1754883763393,1.87573613,121660.0,121650.0,0.67380461]
[1754883763579,1.87573613,121660.0,121650.0,0.25362461]
[1754883764189,1.87573613,121660.0,121650.0,0.48126164]
[1754883764385,1.87573613,121660.0,121650.0,0.32219164]
[1754883764586,1.87573613,121660.0,121650.0,0.27359164]
[1754883764787,1.87573613,121660.0,121650.0,0.32319164]
[1754883765388,1.87573613,121660.0,121650.0,0.31909164]
[1754883765990,1.87573613,121660.0,121650.0,0.31809164]
[1754883766288,1.87473613,121660.0,121650.0,0.31809164]
[1754883766488,1.87673613,121660.0,121650.0,0.31809164]
[1754883766991,1.87673613,121660.0,121650.0,0.27359164]
[1754883767789,1.28942014,121660.0,121650.0,0.20912461]
[1754883768095,0.4766007,121620.0,121610.0,0.0486]
[1754883768294,0.4766075,121610.0,121600.0,0.76250124]
[1754883768493,1.10478993,121610.0,121600.0,0.60715529]
[1754883768686,1.10478993,121610.0,121600.0,0.96844495]
[1754883768886,1.87458993,121610.0,121600.0,0.84478967]
[1754883769089,1.91553348,121610.0,121600.0,0.67406593]
[1754883769394,1.14573348,121610.0,121600.0,0.67406593]
[1754883769592,1.91553348,121610.0,121600.0,0.67406593]
[1754883769988,1.64811105,121610.0,121600.0,0.67606593]
[1754883770187,1.60999105,121610.0,121600.0,0.67606593]
[1754883770594,1.60999105,121610.0,121600.0,0.67806593]
[1754883770790,1.24919105,121610.0,121600.0,0.67806593]
[1754883771096,1.24919105,121610.0,121600.0,1.03787923]
[1754883771393,1.24915105,121610.0,121600.0,1.03787923]
[1754883771593,0.94041105,121610.0,121600.0,1.03787923]
[1754883771792,0.0001,121610.0,121600.0,2.14790809]
[1754883771995,1.13572,121630.0,121620.0,0.46878]
[1754883772194,1.90552,121630.0,121620.0,1.09696243]
[1754883772493,1.90552,121630.0,121620.0,1.21975299]
[1754883772693,1.90552,121630.0,121620.0,1.30198645]
[1754883772694,1.13572,121630.0,121620.0,1.30198645]
[1754883772883,1.90548,121630.0,121620.0,1.30198645]
[1754883773088,1.90558,121630.0,121620.0,1.30198645]
[1754883773794,1.13582,121630.0,121620.0,1.30198645]
[1754883774197,1.90554,121630.0,121620.0,1.41078517]
[1754883775298,1.13582,121630.0,121620.0,1.41278517]
[1754883775487,1.90554,121630.0,121620.0,1.41678517]
[1754883776298,0.76982,121630.0,121620.0,1.41678517]
[1754883776496,0.76982,121630.0,121620.0,1.41478517]
[1754883776796,0.76982,121630.0,121620.0,1.41678517]
[1754883776996,0.76982,121630.0,121620.0,1.04060402]
[1754883777396,0.76982,121630.0,121620.0,1.04470402]
[1754883777601,0.0001,121630.0,121620.0,1.04470402]
[1754883777794,0.76974,121630.0,121620.0,1.04470402]
[1754883778193,0.76974,121630.0,121620.0,1.04270402]
[1754883778394,0.88922,121630.0,121620.0,1.04470402]
[1754883778595,0.88922,121630.0,121620.0,0.68190402]
[1754883778796,1.066304,121630.0,121620.0,0.68190402]
[1754883779101,1.066304,121630.0,121620.0,0.68090402]
[1754883779301,0.476794,121630.0,121620.0,0.68090402]
[1754883779498,1.21377515,121630.0,121620.0,0.26072402]
[1754883779801,1.98333515,121630.0,121620.0,0.26072402]
[1754883780302,1.21377515,121630.0,121620.0,0.25662402]
[1754883780502,1.98333515,121630.0,121620.0,0.25662402]
[1754883780990,1.98333515,121630.0,121620.0,0.20802402]
[1754883781297,1.98329515,121630.0,121620.0,0.25662402]
[1754883781501,1.98329515,121630.0,121620.0,0.49276112]
[1754883781804,1.98329515,121630.0,121620.0,0.65183112]
[1754883781999,1.98329515,121630.0,121620.0,0.64983112]
[1754883782502,1.98329515,121630.0,121620.0,0.79092112]
[1754883784403,1.98329515,121630.0,121620.0,0.78992112]
[1754883785201,1.21377515,121630.0,121620.0,0.78992112]
[1754883785501,1.98321515,121630.0,121620.0,0.79402112]
[1754883788002,1.21377515,121630.0,121620.0,0.79402112]
[1754883788204,1.98313515,121630.0,121620.0,0.79402112]
[1754883789494,1.98313515,121630.0,121620.0,0.55788402]
[1754883791305,1.21377515,121630.0,121620.0,0.55788402]
[1754883791498,1.98309515,121630.0,121620.0,0.55788402]
[1754883794204,1.87459376,121630.0,121620.0,0.55788402]
[1754883794406,1.87459376,121630.0,121620.0,0.20912402]
[1754883794407,1.10527376,121630.0,121620.0,0.20912402]
[1754883794708,0.837594,121630.0,121620.0,0.68028402]
[1754883794908,1.87443376,121630.0,121620.0,0.68028402]
[1754883795603,1.606754,121630.0,121620.0,0.91642112]
[1754883795798,1.87443376,121630.0,121620.0,0.91642112]
[1754883796808,1.606754,121630.0,121620.0,0.91642112]
[1754883797110,1.87443376,121630.0,121620.0,0.84656112]
[1754883797312,1.87443376,121630.0,121620.0,0.79743112]
[1754883797609,1.87443376,121630.0,121620.0,0.44116112]
[1754883797610,1.10527376,121630.0,121620.0,0.44116112]
[1754883797808,1.87435376,121630.0,121620.0,0.44116112]
[1754883798110,0.1313277,121610.0,121600.0,0.06618083]
[1754883798305,1.59942746,121610.0,121600.0,0.06618083]
[1754883798501,0.83038746,121610.0,121600.0,0.1902201]
[1754883798703,1.59946746,121610.0,121600.0,0.27244003]
[1754883799099,1.59946746,121610.0,121600.0,0.32172003]
[1754883799805,1.59942746,121610.0,121600.0,0.32472003]
[1754883800606,0.83038746,121610.0,121600.0,0.32472003]
[1754883800806,1.96018746,121610.0,121600.0,0.32472003]
[1754883802805,0.5627077,121610.0,121600.0,0.75070003]
[1754883803005,0.11968,121610.0,121600.0,1.01837979]
[1754883803312,0.0001,121610.0,121600.0,1.38327979]
[1754883803813,0.76906,121610.0,121600.0,1.37917979]
[1754883804315,0.76906,121610.0,121600.0,1.48784391]
[1754883804507,0.0001,121610.0,121600.0,1.48784391]
[1754883804708,0.76902,121610.0,121600.0,1.48784391]
[1754883807320,0.76902,121610.0,121600.0,1.11150003]
[1754883807613,0.76894,121610.0,121600.0,1.48784391]
[1754883808314,0.76894,121610.0,121600.0,1.49194391]
[1754883809621,0.0001,121610.0,121600.0,1.49194391]
[1754883809814,0.76882,121610.0,121600.0,1.11560003]
[1754883810012,0.9001472,121610.0,121600.0,1.11560003]
[1754883810216,0.9706272,121610.0,121600.0,1.11560003]
[1754883810812,0.9706272,121610.0,121600.0,0.75480003]
[1754883811120,0.9706272,121610.0,121600.0,0.75070003]
[1754883811617,0.2019072,121610.0,121600.0,0.75070003]
[1754883811820,0.0823272,121610.0,121600.0,0.75070003]
[1754883812017,0.9000672,121610.0,121600.0,0.75070003]
[1754883812210,0.9705472,121610.0,121600.0,0.75070003]
[1754883813123,0.2019072,121610.0,121600.0,0.75070003]
[1754883813524,0.9705072,121610.0,121600.0,0.75070003]
[1754883815825,0.2019072,121610.0,121600.0,0.75070003]
[1754883816016,0.88816,121610.0,121600.0,0.75070003]
[1754883816428,0.11968,121610.0,121600.0,0.75070003]
[1754883816821,0.88816,121610.0,121600.0,0.75070003]
[1754883817424,0.2019068,121610.0,121600.0,0.75070003]
[1754883817725,0.9703468,121610.0,121600.0,0.75070003]
[1754883819023,0.9703468,121610.0,121600.0,0.75480003]
[1754883825632,0.2019068,121610.0,121600.0,0.75480003]
[1754883825824,0.9700668,121610.0,121600.0,0.75480003]
[1754883828630,0.9699868,121610.0,121600.0,0.75480003]
[1754883828827,0.2019068,121610.0,121600.0,0.75480003]
[1754883829026,0.9699068,121610.0,121600.0,0.75480003]
[1754883830531,0.9699068,121610.0,121600.0,0.68494003]
[1754883830830,0.9699068,121610.0,121600.0,0.75777003]
[1754883831526,1.23759808,121610.0,121600.0,0.68494003]
[1754883831727,1.23759808,121610.0,121600.0,0.32882003]
[1754883832235,1.23759808,121610.0,121600.0,0.75911003]
[1754883832432,0.9699068,121610.0,121600.0,0.75911003]
[1754883832928,0.2019068,121610.0,121600.0,0.75911003]
[1754883833135,0.9697868,121610.0,121600.0,0.75911003]
[1754883833433,0.9697468,121610.0,121600.0,0.75911003]
[1754883834434,0.9697468,121610.0,121600.0,1.02680131]
[1754883834936,0.88752,121610.0,121600.0,1.02680131]
[1754883835144,0.9697457,121610.0,121600.0,1.02680131]
[1754883835429,0.9697457,121610.0,121600.0,0.75911003]
[1754883835634,0.9697457,121610.0,121600.0,1.02680131]
[1754883837337,0.9697457,121610.0,121600.0,0.75911003]
[1754883837530,0.9696657,121610.0,121600.0,0.75911003]
[1754883840542,0.2019057,121610.0,121600.0,0.75911003]
[1754883840748,0.9695057,121610.0,121600.0,0.75911003]
[1754883841346,1.59795698,121610.0,121600.0,0.27954003]
[1754883842150,0.83039698,121610.0,121600.0,0.27954003]
[1754883842345,1.59791698,121610.0,121600.0,0.27544003]
[1754883842546,0.83039698,121610.0,121600.0,0.27954003]
[1754883842742,1.59791698,121610.0,121600.0,0.27954003]
[1754883842938,0.83039698,121610.0,121600.0,0.27954003]
[1754883843146,1.59787698,121610.0,121600.0,0.27954003]
[1754883843348,0.83039698,121610.0,121600.0,0.27954003]
[1754883843650,1.59787698,121610.0,121600.0,0.27954003]
[1754883845543,0.83039698,121610.0,121600.0,0.27954003]
[1754883845748,1.59787698,121610.0,121600.0,0.27954003]
[1754883846156,0.83039698,121610.0,121600.0,0.27954003]
[1754883846451,1.59779698,121610.0,121600.0,0.27954003]
[1754883847751,1.59779698,121610.0,121600.0,0.32846003]
[1754883849552,1.59779698,121610.0,121600.0,0.27954003]
[1754883849955,0.83039698,121610.0,121600.0,0.27954003]
[1754883850152,1.59767698,121610.0,121600.0,0.27954003]
[1754883850351,1.59767698,121610.0,121600.0,0.32436003]
[1754883853059,1.95847698,121610.0,121600.0,0.32436003]
[1754883856163,1.95847698,121610.0,121600.0,0.32846003]
[1754883856557,1.95827698,121610.0,121600.0,0.32846003]
[1754883859754,1.19119698,121610.0,121600.0,0.32846003]
[1754883859954,1.95823698,121610.0,121600.0,0.32846003]
[1754883860662,1.95815698,121610.0,121600.0,0.32846003]
[1754883865465,1.19119698,121610.0,121600.0,0.32846003]
[1754883865660,1.62335226,121610.0,121600.0,0.27954003]
[1754883865860,1.35566098,121610.0,121600.0,0.27544003]
[1754883866060,1.35566098,121610.0,121600.0,0.32436003]
[1754883866261,2.12242098,121610.0,121600.0,0.32436003]
[1754883866960,2.12242098,121610.0,121600.0,0.27544003]
[1754883867559,2.12242098,121610.0,121600.0,0.32436003]
[1754883868066,2.12242098,121610.0,121600.0,0.26234853]
[1754883868262,2.12242098,121610.0,121600.0,0.2581792]
[1754883868663,2.12242098,121610.0,121600.0,0.2622792]
[1754883868867,1.62335226,121610.0,121600.0,0.19106963]
[1754883869055,1.62335226,121610.0,121600.0,0.19113517]
[1754883869260,2.38999226,121610.0,121600.0,0.19113517]
[1754883869467,1.62335226,121610.0,121600.0,0.19113517]
[1754883869668,2.38999226,121610.0,121600.0,0.19113517]
[1754883870463,0.1298717,121590.0,121580.0,0.06457652]
[1754883870770,0.1298754,121580.0,121570.0,0.18608]
[1754883870968,1.59278668,121580.0,121570.0,0.35813]
[1754883871265,1.59278668,121580.0,121570.0,0.48606913]
[1754883871461,1.59278668,121580.0,121570.0,0.28947036]
[1754883871768,2.72914668,121580.0,121570.0,0.25919036]
[1754883871972,2.72710668,121580.0,121570.0,0.25919036]
[1754883872668,2.72910668,121580.0,121570.0,0.25919036]
[1754883873368,2.72906668,121580.0,121570.0,0.25919036]
[1754883874568,2.72906668,121580.0,121570.0,0.3204552]
[1754883875470,1.96258668,121580.0,121570.0,0.3204552]